[Event "40th BAN National Women Chess-ch 2021"]
[Site "Dhaka"]
[Date "2022.01.04"]
[Round "7.1"]
[White "Noshin, Anjum"]
[Black "Nusrat Jahan, Alo"]
[Result "1-0"]
[ECO "B40"]
[WhiteElo "2045"]
[BlackElo "1766"]
[Annotator "ChessBase"]
[PlyCount "101"]
[EventDate "2021.12.29"]
[EventCountry "BAN"]
[SourceTitle "playchess.com"]
[Source "ChessBase"]
[SourceQuality "1"]
[TimeControl "40/5400+30:1800+30"]

1. e4 {[%emt 0:00:06]} c5 {[%emt 0:00:09]} 2. d4 {[%emt 0:00:12]} cxd4 {[%emt 0:00:07]} 3. Qxd4 {[%emt 0:00:32]} Nc6 {[%emt 0:00:10]} 4. Qd1 {[%emt 0:00:06]} Nf6 {[%emt 0:01:08]} 5. Nc3 {[%emt 0:00:23]} e6 {[%emt 0:02:34]} 6. Bd3 {[%emt 0:04:48]} Bb4 {[%emt 0:07:18]} 7. Nge2 {[%emt 0:10:53]} d5 {[%emt 0:13:33]} 8. exd5 {[%emt 0:01:37]} Nxd5 {[%emt 0:01:19]} 9. Bd2 {[%emt 0:00:26]} O-O {[%emt 0:02:44]} 10. O-O {[%emt 0:03:16]} Nf6 {[%emt 0:07:34]} 11. Bg5 {[%emt 0:15:12]} Be7 {[%emt 0:07:38]} 12. a3 {[%emt 0:24:01]} a6 {[%emt 0:07:24]} 13. Ng3 {[%emt 0:04:04]} h6 {[%emt 0:04:30]} 14. Be3 {[%emt 0:01:51]} b5 {[%emt 0:04:22]} 15. Be2 {[%emt 0:06:14]} Qc7 {[%emt 0:03:47]} 16. Bf3 {[%emt 0:00:26]} Bb7 {[%emt 0:00:20]} 17. Qe2 {[%emt 0:00:47]} Rfd8 {[%emt 0:01:22]} 18. Rfd1 {[%emt 0:24:36]} Rd7 {[%emt 0:01:42]} 19. Nge4 {[%emt 0:00:00]} Nxe4 {[%emt 0:05:37]} 20. Rxd7 {[%emt 0:00:00]} Qxd7 {[%emt 0:00:54]} 21. Bxe4 {[%emt 0:00:00]} Qc7 {[%emt 0:01:28]} 22. Rd1 {[%emt 0:00:00]} Bf6 {[%emt 0:01:29]} 23. g3 {[%emt 0:00:00]} Rd8 {[%emt 0:05:04]} 24. Bf4 {[%emt 0:00:00]} Rxd1+ {[%emt 0:03:05]} 25. Qxd1 {[%emt 0:00:00]} e5 {[%emt 0:00:25]} 26. Nd5 {[%emt 0:00:00]} Qd8 {[%emt 0:01:51]} 27. Nxf6+ {[%emt 0:00:00]} Qxf6 {[%emt 0:00:03]} 28. Qd7 {[%emt 0:00:00]} Qe7 {[%emt 0:07:30]} 29. Qxe7 {[%emt 0:00:18]} Nxe7 {[%emt 0:00:10]} 30. Bxb7 {[%emt 0:00:15]} exf4 {[%emt 0:00:07]} 31. Bxa6 {[%emt 0:00:11]} b4 {[%emt 0:01:25]} 32. axb4 {[%emt 0:00:26]} Nd5 {[%emt 0:00:29]} 33. c3 {[%emt 0:00:36]} Kf8 {[%emt 0:00:37]} 34. Kg2 {[%emt 0:00:37]} Ke7 {[%emt 0:00:16]} 35. Bb7 {[%emt 0:00:14]} Nb6 {[%emt 0:01:06]} 36. b3 {[%emt 0:00:10]} fxg3 {[%emt 0:00:31]} 37. fxg3 {[%emt 0:00:30]} Kd6 {[%emt 0:00:41]} 38. Kf3 {[%emt 0:02:40]} Nd7 {[%emt 0:00:39]} 39. Ke3 {[%emt 0:00:55]} Ne5 {[%emt 0:00:19]} 40. h3 {[%emt 0:00:00]} f6 {[%emt 0:00:00]} 41. c4 {[%emt 0:03:01]} Nf7 {[%emt 0:03:34]} 42. Bd5 {[%emt 0:00:39]} Ne5 {[%emt 0:00:51]} 43. Kd4 {[%emt 0:00:24]} g6 {[%emt 0:01:25]} 44. c5+ {[%emt 0:00:19]} Kc7 {[%emt 0:00:24]} 45. b5 {[%emt 0:00:08]} Nd7 {[%emt 0:01:11]} 46. b4 {[%emt 0:00:20]} g5 {[%emt 0:00:58]} 47. b6+ {[%emt 0:00:27]} Kb8 {[%emt 0:00:19]} 48. b5 {[%emt 0:00:22]} h5 {[%emt 0:00:20]} 49. Be6 {[%emt 0:00:43]} Ne5 {[%emt 0:00:30]} 50. c6 {[%emt 0:00:18]} h4 {[%emt 0:00:16]} 51. c7+ {[%emt 0:00:09]} 1-0

[Event "40th BAN National Women Chess-ch 2021"]
[Site "Dhaka"]
[Date "2022.01.04"]
[Round "7.3"]
[White "Israt, Jahan Diba"]
[Black "Jannatul, Ferdous"]
[Result "1/2-1/2"]
[ECO "B19"]
[WhiteElo "1630"]
[BlackElo "1810"]
[Annotator "NA RC"]
[PlyCount "103"]
[EventDate "2021.12.29"]
[EventCountry "BAN"]
[SourceTitle "playchess.com"]
[Source "ChessBase"]
[SourceQuality "1"]
[TimeControl "40/5400+30:1800+30"]

1. e4 {[%emt 0:00:03]} c6 {[%emt 0:00:10]} 2. d4 {[%emt 0:00:05]} d5 {[%emt 0:00:02]} 3. Nc3 {[%emt 0:00:09]} dxe4 {[%emt 0:00:03]} 4. Nxe4 {[%emt 0:00:09]} Bf5 {[%emt 0:00:07]} 5. Ng3 {[%emt 0:00:06]} Bg6 $1 {[%emt 0:00:03]} 6. h4 {[%emt 0:00:11]} h6 {[%emt 0:00:04]} 7. Nf3 {[%emt 0:00:08]} Nd7 {[%emt 0:00:03]} 8. h5 {[%emt 0:00:12]} Bh7 {[%emt 0:00:01]} 9. Bd3 {[%emt 0:00:13]} Bxd3 {[%emt 0:00:05]} 10. Qxd3 {[%emt 0:00:11]} e6 {[%emt 0:00:08]} 11. Bd2 {[%emt 0:00:33]} Ngf6 {[%emt 0:00:17]} 12. O-O-O {[%emt 0:00:49]} Be7 {[%emt 0:02:14]} 13. Ne4 {[%emt 0:01:55]} Nxe4 {[%emt 0:01:13]} 14. Qxe4 {[%emt 0:00:09]} Nf6 {[%emt 0:00:41]} 15. Qe2 {[%emt 0:01:36]} Qd5 {[%emt 0:01:44]} 16. c4 {[%emt 0:03:51]} Qe4 {[%emt 0:02:54]} 17. Qxe4 {[%emt 0:06:49]} Nxe4 {[%emt 0:00:03]} 18. Be3 {[%emt 0:00:32]} O-O {[%emt 0:04:01]} 19. g4 {[%emt 0:01:42]} Rfd8 {[%emt 0:03:14]} 20. Rde1 {[%emt 0:06:47]} c5 {[%emt 0:18:55]} 21. Rhg1 {[%emt 0:05:17]} cxd4 {[%emt 0:05:12]} 22. Bxd4 {[%emt 0:04:22]} Ng5 {[%emt 0:02:38]} 23. Nxg5 {[%emt 0:06:21]} Rxd4 {[%emt 0:01:02]} 24. Ne4 {[%emt 0:04:54]} Rxc4+ {[%emt 0:00:31]} 25. Kb1 {[%emt 0:01:03]} Bb4 {[%emt 0:05:57]} 26. Re2 {[%emt 0:02:22]} Rd8 {[%emt 0:03:39]} 27. g5 {[%emt 0:02:07]} hxg5 {[%emt 0:06:07]} 28. Nxg5 {[%emt 0:02:32]} Rh4 {[%emt 0:01:53]} 29. Re4 {[%emt 0:03:55]} Rxe4 {[%emt 0:04:10]} 30. Nxe4 {[%emt 0:00:06]} Kf8 {[%emt 0:00:35]} 31. Ng5 {[%emt 0:46:51]} Be7 {[%emt 0:02:21]} 32. f4 {[%emt 0:00:00]} Rd4 {[%emt 0:08:41]} 33. Rc1 {[%emt 0:00:00]} Bxg5 {[%emt 0:10:22]} 34. fxg5 {[%emt 0:00:00]} e5 {[%emt 0:09:28]} 35. Rc8+ {[%emt 0:00:00]} Ke7 {[%emt 0:00:03]} 36. Rc7+ {[%emt 0:00:00]} Ke6 {[%emt 0:00:52]} 37. Rxb7 {[%emt 0:03:00]} a5 {[%emt 0:06:12]} 38. Ra7 {[%emt 0:00:00]} a4 {[%emt 0:01:21]} 39. Kc2 {[%emt 0:00:00]} Rh4 {[%emt 0:00:56]} 40. h6 {[%emt 0:00:00]} gxh6 {[%emt 0:00:00]} 41. gxh6 {[%emt 0:00:00]} f5 {[%emt 0:01:00]} 42. h7 {[%emt 0:00:00]} e4 {[%emt 0:11:48]} 43. b4 {[%emt 0:01:03]} axb3+ {[%emt 0:00:29]} 44. axb3 {[%emt 0:00:26]} Ke5 {[%emt 0:01:48]} 45. b4 {[%emt 0:01:49]} Kd4 {[%emt 0:06:58]} 46. b5 {[%emt 0:02:39]} Kc5 {[%emt 0:06:15]} 47. Rf7 {[%emt 0:05:41]} Kxb5 {[%emt 0:00:23]} 48. Kc3 {[%emt 0:02:33]} Rh3+ {[%emt 0:04:30]} 49. Kd4 {[%emt 0:02:28]} Rd3+ $2 {[%emt 0:01:37]} (49... Rh4 $11) 50. Ke5 {[%emt 0:00:09]} Rh3 {[%emt 0:00:38]} 51. Rxf5 {[%emt 0:00:33]} Rxh7 {[%emt 0:01:22]} 52. Kxe4+ $11 {[%emt 0:00:09]} 1/2-1/2

[Event "40th BAN National Women Chess-ch 2021"]
[Site "Dhaka"]
[Date "2022.01.04"]
[Round "7.4"]
[White "Talukder, Umme Taslima Protiva"]
[Black "Tasnia Tarannum, Orpa"]
[Result "1-0"]
[ECO "D45"]
[WhiteElo "1706"]
[BlackElo "1618"]
[Annotator "NA"]
[PlyCount "81"]
[EventDate "2021.12.29"]
[EventCountry "BAN"]
[SourceTitle "playchess.com"]
[Source "ChessBase"]
[SourceQuality "1"]
[TimeControl "40/5400+30:1800+30"]

1. d4 {[%emt 0:00:17]} d5 {[%emt 0:00:02]} 2. c4 {[%emt 0:00:09]} c6 {[%emt 0:00:02]} 3. Nc3 {[%emt 0:00:18]} e6 {[%emt 0:00:05]} 4. e3 {[%emt 0:00:31]} Nf6 {[%emt 0:00:05]} 5. Nf3 {[%emt 0:00:08]} Nbd7 {[%emt 0:00:14]} 6. a3 {[%emt 0:01:14]} dxc4 {[%emt 0:10:57]} 7. Bxc4 {[%emt 0:01:31]} b5 {[%emt 0:00:30]} 8. Be2 {[%emt 0:01:36]} Bb7 {[%emt 0:01:12]} 9. O-O {[%emt 0:01:36]} a6 {[%emt 0:00:23]} 10. Bd2 {[%emt 0:02:30]} c5 {[%emt 0:02:33]} 11. dxc5 {[%emt 0:06:00]} Bxc5 {[%emt 0:01:09]} 12. Rc1 {[%emt 0:07:44]} Qb8 {[%emt 0:02:16]} 13. Nd4 {[%emt 0:06:54]} Bd6 {[%emt 0:05:33]} 14. h3 {[%emt 0:03:06]} Ne5 {[%emt 0:10:45]} 15. Na2 {[%emt 0:04:07]} Nd5 {[%emt 0:22:23]} 16. f4 {[%emt 0:09:40]} Nc4 {[%emt 0:01:29]} 17. Bxc4 {[%emt 0:01:02]} bxc4 {[%emt 0:00:01]} 18. Rxc4 {[%emt 0:08:10]} O-O {[%emt 0:00:14]} 19. Nb4 {[%emt 0:04:59]} Ne7 {[%emt 0:10:42]} 20. Qc2 {[%emt 0:07:20]} e5 {[%emt 0:03:28]} 21. Ndc6 {[%emt 0:32:08]} Nxc6 {[%emt 0:01:53]} 22. Nxc6 {[%emt 0:00:00]} Qe8 {[%emt 0:00:08]} 23. f5 {[%emt 0:00:00]} Qd7 {[%emt 0:03:55]} 24. e4 {[%emt 0:00:00]} Bxc6 {[%emt 0:03:39]} 25. Rxc6 {[%emt 0:00:00]} Rfd8 {[%emt 0:03:56]} 26. Be3 {[%emt 0:00:00]} Qb7 {[%emt 0:02:31]} 27. Rc1 {[%emt 0:00:00]} Bf8 {[%emt 0:08:29]} 28. Qc3 {[%emt 0:00:00]} f6 {[%emt 0:01:20]} 29. Qc4+ {[%emt 0:00:00]} Kh8 {[%emt 0:00:07]} 30. Bb6 {[%emt 0:00:00]} Re8 {[%emt 0:04:46]} 31. Kh2 {[%emt 0:00:00]} h6 {[%emt 0:00:16]} 32. a4 {[%emt 0:00:00]} a5 {[%emt 0:00:46]} 33. b3 {[%emt 0:00:00]} Kh7 {[%emt 0:00:30]} 34. Be3 {[%emt 0:00:00]} Kh8 {[%emt 0:00:33]} 35. Rc7 {[%emt 0:00:00]} Qb4 {[%emt 0:00:30]} 36. Qf7 {[%emt 0:00:00]} Kh7 {[%emt 0:00:34]} 37. Qg6+ {[%emt 0:00:00]} Kh8 {[%emt 0:00:17]} 38. Bxh6 {[%emt 0:00:00]} Re7 {[%emt 0:00:27]} 39. Rc8 {[%emt 0:00:00]} Rxc8 {[%emt 0:00:44]} 40. Rxc8 {[%emt 0:00:00]} Rd7 {[%emt 0:00:00]} 41. Qe8 {[%emt 0:00:00]} 1-0

[Event "40th BAN National Women Chess-ch 2021"]
[Site "Dhaka"]
[Date "2022.01.04"]
[Round "7.5"]
[White "Omnia Binta Yusuf, Lubaba"]
[Black "Khan, Nazrana"]
[Result "1/2-1/2"]
[ECO "B22"]
[WhiteElo "1439"]
[BlackElo "1848"]
[Annotator "NA"]
[PlyCount "83"]
[EventDate "2021.12.29"]
[EventCountry "BAN"]
[SourceTitle "playchess.com"]
[Source "ChessBase"]
[SourceQuality "1"]
[TimeControl "40/5400+30:1800+30"]

1. e4 {[%emt 0:00:12]} c5 {[%emt 0:00:06]} 2. c3 {[%emt 0:00:07]} d5 {[%emt 0:00:15]} 3. exd5 {[%emt 0:00:06]} Qxd5 {[%emt 0:00:08]} 4. Nf3 {[%emt 0:00:08]} Nf6 {[%emt 0:00:16]} 5. Na3 {[%emt 0:01:54]} e6 {[%emt 0:01:54]} 6. d4 {[%emt 0:03:18]} Be7 {[%emt 0:05:18]} 7. Bc4 {[%emt 0:03:22]} Qd8 {[%emt 0:04:50]} 8. Nc2 {[%emt 0:01:45]} O-O {[%emt 0:02:05]} 9. O-O {[%emt 0:01:12]} Nc6 {[%emt 0:03:15]} 10. dxc5 {[%emt 0:04:30]} Bxc5 {[%emt 0:02:07]} 11. Be3 {[%emt 0:00:44]} Bxe3 {[%emt 0:02:36]} 12. Nxe3 {[%emt 0:00:08]} Qc7 {[%emt 0:01:57]} 13. Qc2 {[%emt 0:02:38]} b6 {[%emt 0:01:46]} 14. Rad1 {[%emt 0:01:55]} Bb7 {[%emt 0:01:56]} 15. Rd2 {[%emt 0:05:49]} Rad8 {[%emt 0:05:51]} 16. Rfd1 {[%emt 0:01:32]} Rxd2 {[%emt 0:02:00]} 17. Rxd2 {[%emt 0:00:21]} h6 {[%emt 0:02:34]} 18. Nd4 {[%emt 0:12:07]} Nxd4 {[%emt 0:08:05]} 19. Rxd4 {[%emt 0:01:44]} Rd8 {[%emt 0:01:39]} 20. Rxd8+ {[%emt 0:01:22]} Qxd8 {[%emt 0:01:14]} 21. Qd3 {[%emt 0:08:32]} Qxd3 {[%emt 0:04:53]} 22. Bxd3 {[%emt 0:00:08]} Kf8 {[%emt 0:00:07]} 23. Kf1 {[%emt 0:02:38]} Ke7 {[%emt 0:00:14]} 24. Ke2 {[%emt 0:00:53]} Nd5 {[%emt 0:02:07]} 25. g3 {[%emt 0:03:15]} Nxe3 {[%emt 0:04:46]} 26. Kxe3 {[%emt 0:00:23]} Kd6 {[%emt 0:02:34]} 27. b4 {[%emt 0:02:22]} a5 {[%emt 0:01:56]} 28. a3 {[%emt 0:03:35]} Bc6 {[%emt 0:07:27]} 29. c4 {[%emt 0:03:25]} axb4 {[%emt 0:01:49]} 30. axb4 {[%emt 0:00:19]} Be8 {[%emt 0:05:23]} 31. f4 {[%emt 0:01:02]} f6 $11 {[%emt 0:02:13]} 32. f5 {[%emt 0:04:05]} e5 {[%emt 0:03:04]} 33. Be4 {[%emt 0:00:58]} Bf7 {[%emt 0:01:54]} 34. Kd3 {[%emt 0:01:34]} Be8 {[%emt 0:00:35]} 35. g4 {[%emt 0:04:51]} Bd7 {[%emt 0:00:54]} 36. Bb7 {[%emt 0:05:29]} Ba4 {[%emt 0:01:07]} 37. Bf3 {[%emt 0:02:11]} Bb3 {[%emt 0:01:37]} 38. Kc3 {[%emt 0:00:49]} Ba4 {[%emt 0:00:40]} 39. Kd3 {[%emt 0:01:58]} Be8 {[%emt 0:00:54]} 40. Be4 {[%emt 0:00:00]} Bf7 {[%emt 0:00:00]} 41. Kc3 {[%emt 0:03:00]} Be8 {[%emt 0:01:48]} 42. Kd3 {[%emt 0:00:34]} 1/2-1/2

[Event "40th BAN National Women Chess-ch 2021"]
[Site "Dhaka"]
[Date "2022.01.04"]
[Round "7.6"]
[White "Wadifa, Ahmed"]
[Black "Neelava, Choudhury"]
[Result "1-0"]
[ECO "C90"]
[WhiteElo "1807"]
[BlackElo "1435"]
[Annotator "NA"]
[PlyCount "56"]
[EventDate "2021.12.29"]
[EventCountry "BAN"]
[SourceTitle "playchess.com"]
[Source "ChessBase"]
[SourceQuality "1"]
[TimeControl "40/5400+30:1800+30"]

1. e4 {[%emt 0:00:03]} e5 {[%emt 0:00:50]} 2. Nf3 {[%emt 0:00:11]} Nc6 {[%emt 0:00:38]} 3. Bb5 {[%emt 0:00:09]} a6 {[%emt 0:01:02]} 4. Ba4 {[%emt 0:00:17]} Nf6 {[%emt 0:01:51]} 5. O-O {[%emt 0:00:24]} Be7 {[%emt 0:00:40]} 6. Re1 {[%emt 0:00:17]} b5 {[%emt 0:02:09]} 7. Bb3 {[%emt 0:00:08]} O-O {[%emt 0:00:25]} 8. d3 {[%emt 0:11:46]} d6 {[%emt 0:07:54]} 9. c3 {[%emt 0:00:25]} Na5 {[%emt 0:05:32]} 10. Bc2 {[%emt 0:00:12]} c5 {[%emt 0:03:59]} 11. Nbd2 {[%emt 0:01:28]} Bb7 {[%emt 0:03:26]} 12. Nf1 {[%emt 0:01:05]} Re8 {[%emt 0:03:57]} 13. Ng3 {[%emt 0:05:02]} g6 {[%emt 0:05:09]} 14. d4 {[%emt 0:06:13]} Qc7 {[%emt 0:06:49]} 15. d5 {[%emt 0:05:36]} Bf8 {[%emt 0:06:35]} 16. Bg5 {[%emt 0:04:24]} Bg7 {[%emt 0:06:58]} 17. Qc1 {[%emt 0:04:34]} Bc8 {[%emt 0:11:06]} 18. Nh4 {[%emt 0:07:33]} Nb7 {[%emt 0:10:30]} 19. Rf1 {[%emt 0:01:36]} c4 {[%emt 0:05:30]} 20. a4 {[%emt 0:01:48]} Bd7 {[%emt 0:03:21]} 21. Bh6 {[%emt 0:02:58]} Qd8 {[%emt 0:05:43]} 22. Bxg7 {[%emt 0:01:08]} Kxg7 {[%emt 0:00:09]} 23. axb5 {[%emt 0:01:00]} Bxb5 {[%emt 0:02:28]} 24. Qg5 {[%emt 0:05:28]} Kh8 {[%emt 0:03:03]} 25. f4 {[%emt 0:03:13]} Nd7 {[%emt 0:02:26]} 26. Qh6 {[%emt 0:01:08]} exf4 {[%emt 0:00:46]} 27. Rxf4 {[%emt 0:01:08]} Ne5 {[%emt 0:00:08]} 28. Nhf5 {[%emt 0:01:03]} gxf5 {[%emt 0:01:26]} 1-0

[Event "40th BAN National Women Chess-ch 2021"]
[Site "Dhaka"]
[Date "2022.01.05"]
[Round "8.2"]
[White "Nusrat Jahan, Alo"]
[Black "Talukder, Umme Taslima Protiva"]
[Result "1/2-1/2"]
[ECO "B94"]
[WhiteElo "1766"]
[BlackElo "1706"]
[Annotator "NA RC"]
[PlyCount "93"]
[EventDate "2021.12.29"]
[EventCountry "BAN"]
[SourceTitle "playchess.com"]
[Source "ChessBase"]
[SourceQuality "1"]
[TimeControl "40/5400+30:1800+30"]

1. e4 {[%emt 0:00:05]} c5 {[%emt 0:00:14]} 2. Nf3 {[%emt 0:00:10]} d6 {[%emt 0:00:09]} 3. d4 {[%emt 0:00:08]} cxd4 {[%emt 0:00:05]} 4. Nxd4 {[%emt 0:00:15]} Nf6 {[%emt 0:00:44]} 5. Nc3 {[%emt 0:00:29]} a6 {[%emt 0:00:08]} 6. Bg5 {[%emt 0:00:12]} h6 {[%emt 0:02:14]} 7. Bxf6 {[%emt 0:03:47]} gxf6 {[%emt 0:00:16]} 8. Qf3 {[%emt 0:12:51]} Nd7 {[%emt 0:05:25]} 9. Nd5 {[%emt 0:10:18]} Ne5 {[%emt 0:03:43]} 10. Qc3 {[%emt 0:02:33]} Kd7 {[%emt 0:12:30]} 11. Qb4 {[%emt 0:05:22]} Ra7 {[%emt 0:14:15]} 12. Nb6+ {[%emt 0:26:35]} Ke8 {[%emt 0:56:47]} 13. O-O-O {[%emt 0:34:15]} Bd7 {[%emt 0:00:00]} 14. Nxd7 {[%emt 0:00:00]} Qxd7 {[%emt 0:00:00]} 15. Qb6 {[%emt 0:00:00]} Ra8 {[%emt 0:00:00]} 16. f4 {[%emt 0:00:00]} Nc6 {[%emt 0:00:00]} 17. Nb3 {[%emt 0:00:00]} Qc8 {[%emt 0:00:00]} 18. Rd3 {[%emt 0:00:00]} e6 {[%emt 0:00:00]} 19. Rc3 {[%emt 0:00:00]} Qd7 {[%emt 0:00:00]} 20. Rd3 {[%emt 0:00:00]} Qc8 {[%emt 0:00:00]} 21. Be2 {[%emt 0:00:00]} Be7 {[%emt 0:00:00]} 22. Rhd1 {[%emt 0:00:00]} Bd8 {[%emt 0:00:00]} 23. Qf2 {[%emt 0:00:00]} Nb4 {[%emt 0:00:00]} 24. R3d2 {[%emt 0:00:00]} Be7 {[%emt 0:00:00]} 25. a3 {[%emt 0:00:00]} Nc6 {[%emt 0:06:30]} 26. Bf3 {[%emt 0:06:30]} Qc7 {[%emt 0:00:00]} 27. Bh5 {[%emt 0:00:00]} Rc8 {[%emt 0:00:00]} 28. Kb1 {[%emt 0:00:00]} b5 {[%emt 0:00:00]} 29. Nd4 {[%emt 0:00:00]} Nxd4 {[%emt 0:00:00]} 30. Qxd4 {[%emt 0:00:00]} Qc5 {[%emt 0:00:00]} 31. Qxc5 {[%emt 0:00:00]} Rxc5 {[%emt 0:00:00]} 32. Bf3 {[%emt 0:00:00]} Kd7 {[%emt 0:03:30]} 33. b3 {[%emt 0:00:00]} Rhc8 {[%emt 0:00:00]} 34. Kb2 {[%emt 0:00:00]} R8c7 {[%emt 0:00:00]} 35. Rc1 {[%emt 0:00:55]} Rc3 {[%emt 0:00:00]} 36. Rd3 {[%emt 0:00:26]} Rxd3 {[%emt 0:00:00]} 37. cxd3 {[%emt 0:00:05]} Rxc1 {[%emt 0:00:00]} 38. Kxc1 {[%emt 0:00:06]} a5 {[%emt 0:00:00]} 39. f5 {[%emt 0:01:42]} d5 {[%emt 0:00:00]} 40. Kb2 {[%emt 0:00:00]} dxe4 {[%emt 0:00:00]} 41. dxe4 {[%emt 0:03:04]} Bd6 {[%emt 0:00:00]} 42. h3 {[%emt 0:00:20]} Be5+ {[%emt 0:00:00]} 43. Kc2 {[%emt 0:00:21]} b4 {[%emt 0:00:00]} 44. a4 {[%emt 0:00:33]} exf5 {[%emt 0:00:00]} 45. exf5 {[%emt 0:00:11]} Kd6 {[%emt 0:00:00]} 46. Kd3 {[%emt 0:00:39]} Bg3 {[%emt 0:00:00]} 47. Ke4 {[%emt 0:32:08]} 1/2-1/2

[Event "40th BAN National Women Chess-ch 2021"]
[Site "Dhaka"]
[Date "2022.01.05"]
[Round "8.3"]
[White "Israt, Jahan Diba"]
[Black "Sultana, Sharmin Shirin"]
[Result "1-0"]
[ECO "B43"]
[WhiteElo "1630"]
[BlackElo "1975"]
[Annotator "RC"]
[PlyCount "77"]
[EventDate "2021.12.29"]
[EventCountry "BAN"]
[SourceTitle "playchess.com"]
[Source "ChessBase"]
[SourceQuality "1"]
[TimeControl "40/5400+30:1800+30"]

1. e4 {[%emt 0:00:03]} c5 {[%emt 0:00:03]} 2. Nf3 {[%emt 0:00:08]} e6 {[%emt 0:00:03]} 3. d4 {[%emt 0:00:08]} cxd4 {[%emt 0:00:04]} 4. Nxd4 {[%emt 0:00:06]} a6 {[%emt 0:00:44]} 5. Nc3 {[%emt 0:00:16]} Qc7 {[%emt 0:00:15]} 6. Bd3 {[%emt 0:02:17]} Nf6 {[%emt 0:07:00]} 7. O-O {[%emt 0:01:28]} b5 {[%emt 0:00:20]} 8. a3 {[%emt 0:01:03]} Bb7 {[%emt 0:00:04]} 9. Kh1 {[%emt 0:00:54]} d5 {[%emt 0:05:44]} 10. exd5 {[%emt 0:13:20]} Nxd5 {[%emt 0:00:56]} 11. Nxd5 {[%emt 0:04:25]} Bxd5 {[%emt 0:00:20]} 12. Qg4 {[%emt 0:04:27]} Nd7 {[%emt 0:27:03]} 13. Bf4 {[%emt 0:08:06]} Qb6 {[%emt 0:04:53]} 14. Nf3 {[%emt 0:10:02]} Nf6 {[%emt 0:02:46]} 15. Qh3 {[%emt 0:04:39]} Be7 {[%emt 0:03:18]} 16. Rae1 {[%emt 0:06:25]} Bxf3 {[%emt 0:12:57]} 17. gxf3 {[%emt 0:09:18]} Rd8 {[%emt 0:13:41]} 18. Rg1 {[%emt 0:09:35]} Bf8 {[%emt 0:02:10]} 19. Bf5 {[%emt 0:06:10]} Be7 {[%emt 0:06:01]} 20. Bd3 {[%emt 0:04:15]} g6 {[%emt 0:04:05]} 21. Bg5 {[%emt 0:05:54]} Rd5 {[%emt 0:01:19]} 22. Bxg6 {[%emt 0:02:38]} fxg6 {[%emt 0:03:09]} 23. Rxe6 {[%emt 0:01:20]} Rd6 {[%emt 0:00:08]} 24. Rge1 {[%emt 0:01:22]} O-O {[%emt 0:00:30]} 25. Rxe7 {[%emt 0:00:38]} Nh5 {[%emt 0:00:05]} 26. Bh6 {[%emt 0:00:40]} Rfd8 {[%emt 0:03:49]} 27. Re8+ {[%emt 0:01:12]} Rxe8 {[%emt 0:00:01]} 28. Rxe8+ {[%emt 0:00:09]} Kf7 {[%emt 0:00:01]} 29. Rf8+ {[%emt 0:02:17]} Ke7 {[%emt 0:00:01]} 30. Qc8 {[%emt 0:00:32]} Re6 {[%emt 0:03:11]} 31. Re8+ {[%emt 0:01:03]} Kf6 {[%emt 0:00:08]} 32. Qc3+ {[%emt 0:00:40]} Kf7 {[%emt 0:00:18]} 33. Rf8+ {[%emt 0:00:26]} Ke7 {[%emt 0:00:01]} 34. Qb4+ {[%emt 0:00:25]} Kd7 {[%emt 0:01:09]} 35. Rf7+ {[%emt 0:00:26]} Kc6 {[%emt 0:00:02]} 36. Qc3+ {[%emt 0:00:19]} Kd6 {[%emt 0:00:34]} 37. Qd3+ {[%emt 0:00:33]} Kc6 {[%emt 0:00:28]} 38. Qd7+ {[%emt 0:00:16]} Kc5 {[%emt 0:00:05]} 39. b4+ {[%emt 0:02:05]} 1-0

[Event "40th BAN National Women Chess-ch 2021"]
[Site "Dhaka"]
[Date "2022.01.05"]
[Round "8.4"]
[White "Jannatul, Ferdous"]
[Black "Wadifa, Ahmed"]
[Result "1-0"]
[ECO "B41"]
[WhiteElo "1810"]
[BlackElo "1807"]
[Annotator "NA RC"]
[PlyCount "79"]
[EventDate "2021.12.29"]
[EventCountry "BAN"]
[SourceTitle "playchess.com"]
[Source "ChessBase"]
[SourceQuality "1"]
[TimeControl "40/5400+30:1800+30"]

1. e4 {[%emt 0:00:09]} c5 {[%emt 0:00:11]} 2. Nf3 {[%emt 0:00:10]} e6 {[%emt 0:00:02]} 3. d4 {[%emt 0:00:07]} cxd4 {[%emt 0:00:05]} 4. Nxd4 {[%emt 0:00:03]} a6 {[%emt 0:00:35]} 5. c4 {[%emt 0:00:19]} Nc6 {[%emt 0:00:45]} 6. Nc3 {[%emt 0:01:56]} Qc7 {[%emt 0:03:06]} 7. Be3 {[%emt 0:00:42]} Nf6 {[%emt 0:00:48]} 8. a3 {[%emt 0:00:09]} b6 {[%emt 0:03:04]} 9. Be2 {[%emt 0:05:32]} Bb7 {[%emt 0:01:00]} 10. f3 {[%emt 0:00:04]} Nxd4 {[%emt 0:07:16]} 11. Bxd4 {[%emt 0:01:41]} Bc5 {[%emt 0:04:48]} 12. b4 {[%emt 0:04:01]} Bxd4 {[%emt 0:04:48]} 13. Qxd4 {[%emt 0:00:06]} O-O {[%emt 0:00:37]} 14. e5 {[%emt 0:02:31]} Ne8 {[%emt 0:05:17]} 15. Na4 {[%emt 0:03:19]} Rb8 {[%emt 0:25:19]} 16. Nxb6 {[%emt 0:08:15]} Bxf3 {[%emt 0:01:33]} 17. Nxd7 {[%emt 0:05:07]} Rd8 {[%emt 0:03:32]} 18. Bxf3 {[%emt 0:08:41]} Rxd7 {[%emt 0:01:13]} 19. Qc3 {[%emt 0:00:25]} f6 {[%emt 0:01:00]} 20. exf6 {[%emt 0:01:13]} Nxf6 {[%emt 0:01:21]} 21. O-O {[%emt 0:01:01]} e5 {[%emt 0:05:47]} 22. Rfe1 {[%emt 0:05:49]} Re8 {[%emt 0:00:32]} 23. c5 {[%emt 0:02:30]} Kh8 {[%emt 0:06:18]} 24. Rad1 {[%emt 0:07:32]} e4 {[%emt 0:03:37]} 25. Rxd7 {[%emt 0:08:07]} Qxd7 {[%emt 0:00:05]} 26. Rd1 {[%emt 0:01:01]} Qb5 {[%emt 0:01:29]} 27. a4 {[%emt 0:10:06]} Qxa4 {[%emt 0:02:30]} 28. Be2 {[%emt 0:00:29]} e3 {[%emt 0:17:52]} 29. Ra1 {[%emt 0:10:55]} Ne4 {[%emt 0:00:00]} 30. Qb2 {[%emt 0:04:04]} Qd7 {[%emt 0:00:00]} 31. Bxa6 {[%emt 0:03:17]} Nd2 {[%emt 0:00:00]} 32. Re1 {[%emt 0:03:58]} Qf7 {[%emt 0:00:00]} 33. Qc1 {[%emt 0:01:15]} Qf2+ {[%emt 0:00:00]} 34. Kh1 {[%emt 0:00:09]} h6 {[%emt 0:00:21]} 35. c6 {[%emt 0:01:00]} Qf4 {[%emt 0:00:26]} 36. Be2 {[%emt 0:01:22]} Qc7 {[%emt 0:01:50]} 37. b5 {[%emt 0:00:26]} Re4 {[%emt 0:01:11]} 38. b6 {[%emt 0:00:51]} Qxb6 {[%emt 0:00:40]} 39. c7 {[%emt 0:00:08]} Re8 {[%emt 0:00:13]} 40. c8=Q {[%emt 0:00:00]} 1-0